[Event "45th FIDE Olympiad 2024"]
[Site "Budapest"]
[Date "2024.09.16"]
[Round "6.49"]
[White "Henriquez Villagra, Cristobal"]
[Black "Predke, Alexandr"]
[Result "0-1"]
[ECO "A30"]
[WhiteElo "2604"]
[BlackElo "2671"]
[Annotator "TA"]
[PlyCount "144"]
[EventDate "2024.09.05"]
[EventType "team-tourn"]
[EventCountry "HUN"]
[SourceTitle "playchess.com"]
[Source "ChessBase"]
[SourceQuality "1"]
[WhiteTeam "Chile"]
[BlackTeam "Serbia"]
[WhiteTeamCountry "CHI"]
[BlackTeamCountry "SRB"]
[TimeControl "40/5400+30:1800+30"]

{[%evp 56,144,-125,-110,-114,-166,-77,-75,-80,-69,-85,-104,-95,-90,-102,-149,-146,-139,-142,-170,-156,-157,-162,-159,-143,-187,-109,-158,-152,-163,-161,-156,-167,-178,-171,-219,-219,-219,-219,-184,-163,-134,-134,-1080,-1157,-607,-607,-594,-586,-1826,-1777,-1844,-1745,-369,-101,-108,-108,-108,-109,-116,-116,-29960,-29961,-29962,-29963,-29964,-29965,-29965,-29966,-29966,-29967,-29969,-29969,-29969,-29970,-29970,-29971,-29971,-29972,-29971,-29972,-29972,-29973,-29973,-29974,-29974,-29975,-29975,-29976,-29974,-29975]} 1. Nf3 {[%emt 0:02:39]} Nf6 {[%emt 0:02:50]} 2. g3 {[%emt 0:00:47]} b6 {[%emt 0:00:06]} 3. Bg2 {[%emt 0:00:50]} Bb7 {[%emt 0:00:05]} 4. d3 {[%emt 0:01:55]} g6 {[%emt 0:01:09]} 5. e4 {[%emt 0:01:03]} d6 {[%emt 0:00:05]} 6. O-O {[%emt 0:07:57]} c5 {[%emt 0:01:33]} 7. c4 {[%emt 0:00:35]} Bg7 {[%emt 0:00:53]} 8. Nc3 {[%emt 0:00:07]} O-O {[%emt 0:00:20]} 9. h4 $146 {[%emt 0:02:27] A30: Symmetrical English: Double Fianchetto and Hedgehog.} ({Predecessor:} 9. Re1 Nc6 10. Be3 e6 11. d4 cxd4 12. Nxd4 Nxd4 13. Bxd4 Qe7 14. b3 Rfd8 15. Qd2 Bc6 16. Nd5 Bxd5 17. exd5 e5 {1-0 Nakamura,H (2775)-Bortnyk,O (2605) Titled Tuesday intern op 18th Apr Early blitz 2023 (5)}) 9... a6 {[%emt 0:06:34]} 10. Nh2 {[%emt 0:02:57]} Nc6 {[%emt 0:01:49]} 11. a4 {[%emt 0:07:07]} Rb8 {[%emt 0:00:54]} 12. g4 {[%emt 0:04:09]} Nd4 {[%emt 0:13:08]} 13. h5 {[%emt 0:11:37]} b5 {[%emt 0:04:29]} 14. axb5 {[%emt 0:09:26]} axb5 {[%emt 0:00:05]} 15. cxb5 {[%emt 0:00:07]} Bc8 {[%emt 0:01:43]} 16. hxg6 {[%emt 0:03:06]} fxg6 {[%emt 0:25:39]} 17. f4 {[%emt 0:11:35]} Be6 {[%emt 0:00:05]} 18. Bf3 {[%emt 0:07:01]} g5 {[%emt 0:17:47]} 19. f5 {[%emt 0:08:17]} Bb3 {[%emt 0:00:05]} 20. Qd2 {[%emt 0:00:03]} h6 {[%emt 0:01:12]} 21. Bd1 {[%emt 0:00:51]} Bxd1 {[%emt 0:04:07]} 22. Qxd1 {[%emt 0:00:05]} Nxb5 {[%emt 0:01:16]} 23. Qb3+ {[%emt 0:02:06]} Kh8 {[%emt 0:01:38]} 24. Nxb5 {[%emt 0:00:27]} Qb6 {[%emt 0:00:06]} 25. Qe6 {[%emt 0:00:18]} Qxb5 {[%emt 0:00:14]} 26. Rf3 {[%emt 0:03:45]} Ra8 {[%emt 0:02:41]} 27. Rb1 {[%emt 0:08:12]} Qd7 {[%emt 0:01:38]} 28. Bd2 {[%emt 0:00:21]} Qxe6 {[%emt 0:03:19]} 29. fxe6 {[%emt 0:00:02]} Nh7 {[%emt 0:00:04]} 30. b4 {[%emt 0:02:46]} (30. Bc3 $17 {keeps fighting.}) 30... Ra2 {[%emt 0:07:33]} (30... Rfb8 $1 $19 31. Rff1 cxb4 32. Rxb4 Rxb4 33. Bxb4 Nf8) 31. Rxf8+ $17 {[%emt 0:02:25]} Nxf8 {[%emt 0:00:10]} 32. b5 {[%emt 0:00:24]} Nxe6 {[%emt 0:02:13]} (32... Rxd2 33. b6 Bd4+ (33... Rxd3 $2 34. b7 $18) 34. Kh1 $14) 33. b6 {[%emt 0:00:41]} Nd8 {[%emt 0:00:28]} (33... Rxd2 $2 {loses.} 34. b7 $18) 34. Nf3 {[%emt 0:00:43]} Nb7 {[%emt 0:00:03]} 35. Kf2 {[%emt 0:00:14]} (35. Kf1 $142) 35... Kg8 $17 {[%emt 0:00:14]} 36. Ke3 {[%emt 0:00:51]} Kf7 {[%emt 0:00:15]} 37. Rb3 {[%emt 0:00:09]} Ke6 {[%emt 0:00:52]} 38. Bc3 {[%emt 0:00:09]} Bxc3 {[%emt 0:01:19]} 39. Rxc3 {[%emt 0:00:02]} Rb2 {[%emt 0:00:41]} 40. Ra3 {[%emt 0:00:41]} Rxb6 {[%emt 0:00:06]} (40... d5 $1 $19 {[%cal Rd5d4] Strongly threatening ...d4+.} 41. exd5+ Kxd5) 41. Ra8 $17 {[%emt 0:30:03]} Kd7 {[%emt 0:03:05]} 42. Rh8 {[%emt 0:00:00]} Na5 {[%emt 0:13:56]} 43. Rxh6 {[%emt 0:00:00]} Rb3 $1 {[%emt 0:00:04]} 44. Ke2 {[%emt 0:00:00]} Rb2+ {[%emt 0:00:03]} 45. Ke3 {[%emt 0:00:00]} (45. Kf1 {was called for.}) 45... c4 $1 $19 {[%emt 0:01:47]} 46. dxc4 {[%emt 0:00:00]} Nxc4+ {[%emt 0:00:07]} 47. Kd4 {[%emt 0:00:00]} Rb3 $1 {[%emt 0:00:34]} 48. Kxc4 {[%emt 0:00:00]} Rxf3 {[%emt 0:00:03]} 49. e5 $2 {[%emt 0:00:00][%mdl 8192]} (49. Rg6 $17) 49... Kc6 $1 $19 {[%emt 0:01:03]} (49... dxe5 50. Kd5 $15) 50. Re6 {[%emt 0:01:23]} Rf4+ {[%emt 0:01:05]} 51. Kd3 {[%emt 0:00:05]} Kd5 {[%emt 0:04:21]} ({Weaker is} 51... Rxg4 52. Rxe7 d5 53. Rg7 $11) 52. Rxe7 {[%emt 0:00:11]} dxe5 {[%emt 0:00:02]} 53. Re8 {[%emt 0:01:11]} Rxg4 {[%emt 0:01:27]} 54. Ke3 {[%emt 0:01:13]} Rf4 $2 {[%emt 0:01:14]} (54... Re4+ $1 $19 {has better winning chances.} 55. Kf3 Rf4+ 56. Kg3 g4) 55. Rg8 $17 {[%emt 0:00:26]} g4 {[%emt 0:01:10]} 56. Rg6 {[%emt 0:00:06]} Ra4 {[%emt 0:02:21]} 57. Ke2 {[%emt 0:00:17]} Rb4 {[%emt 0:00:40]} 58. Ke1 $2 {[%emt 0:00:27][%mdl 8192]} (58. Kf2 $17) 58... Rf4 {[%emt 0:00:50]} 59. Ke2 {[%emt 0:00:49]} Kd4 {[%emt 0:00:05]} 60. Rg8 {[%emt 0:02:17] [#]} e4 $1 {[%emt 0:01:44]} 61. Rg7 {[%emt 0:00:54]} Ke5 {[%emt 0:00:27]} 62. Rg5+ {[%emt 0:01:36] [#]} Kf6 $1 {[%emt 0:00:05]} 63. Rb5 {[%emt 0:01:05]} Rf3 {[%emt 0:00:54]} 64. Ra5 {[%emt 0:00:14]} g3 {[%emt 0:02:13]} 65. Ra8 {[%emt 0:00:12]} Kg5 {[%emt 0:00:26]} 66. Re8 {[%emt 0:00:26]} Rf2+ {[%emt 0:00:10]} 67. Ke3 {[%emt 0:00:16]} Kg4 {[%emt 0:00:08]} 68. Rh8 {[%emt 0:01:01]} Rf3+ {[%emt 0:01:33]} 69. Kxe4 {[%emt 0:00:41]} Ra3 {[%emt 0:00:03]} 70. Rg8+ {[%emt 0:00:41]} Kh3 {[%emt 0:00:04]} 71. Kf4 {[%emt 0:00:03]} Kh2 {[%emt 0:00:04]} 72. Rh8+ {[%emt 0:00:30]} Kg1 {[%emt 0:00:19]} 0-1

[Event "45th FIDE Olympiad 2024"]
[Site "Budapest"]
[Date "2024.09.16"]
[Round "6.49"]
[White "Mahamat, Hachim Bachar"]
[Black "Murphy, Jones"]
[Result "0-1"]
[WhiteElo "1872"]
[BlackElo "2021"]
[PlyCount "96"]
[EventDate "2024.09.05"]
[EventType "team-tourn"]
[EventCountry "HUN"]
[WhiteTeam "Chad"]
[BlackTeam "Dominica"]
[WhiteTeamCountry "CHD"]
[TimeControl "40/5400+30:1800+30"]

1. e4 e5 2. d4 exd4 3. c3 d5 4. exd5 Qxd5 5. Nf3 Nc6 6. cxd4 Bg4 7. Be2 Nf6 8. Nc3 Bb4 9. O-O Bxc3 10. bxc3 O-O 11. c4 Qd6 12. d5 Ne5 13. Nxe5 Qxe5 14. Be3 Bxe2 15. Qxe2 Rfe8 16. Rfe1 Re7 17. Qd3 Ng4 18. f4 Qh5 19. h3 Nxe3 20. Rxe3 Rae8 21. Rae1 Qh4 22. g3 Qf6 23. c5 Rxe3 24. Rxe3 Rxe3 25. Qxe3 Qa1+ 26. Kf2 Qxa2+ 27. Kg1 Qb1+ 28. Kf2 Qc2+ 29. Ke1 Qb1+ 30. Kf2 Kf8 31. Qa3 a6 32. c6+ Ke8 33. Qe3+ Kd8 34. Qc5 Qb6 35. Qxb6 cxb6 36. cxb7 Kc7 37. b8=Q+ Kxb8 38. Ke3 Kc7 39. Kd4 Kd6 40. f5 b5 41. g4 a5 42. g5 a4 43. h4 a3 44. Kc3 b4+ 45. Kb3 Kxd5 46. h5 g6 47. fxg6 fxg6 48. hxg6 hxg6 {0-} 0-1

[Event "45th FIDE Olympiad 2024"]
[Site "Budapest"]
[Date "2024.09.16"]
[Round "6.50"]
[White "Sarana, Alexey"]
[Black "Salinas Herrera, Pablo"]
[Result "1-0"]
[ECO "D60"]
[WhiteElo "2713"]
[BlackElo "2479"]
[Annotator "RC"]
[PlyCount "119"]
[EventDate "2024.09.05"]
[EventType "team-tourn"]
[EventCountry "HUN"]
[SourceTitle "playchess.com"]
[Source "ChessBase"]
[SourceQuality "1"]
[WhiteTeam "Serbia"]
[BlackTeam "Chile"]
[WhiteTeamCountry "SRB"]
[BlackTeamCountry "CHI"]
[TimeControl "40/5400+30:1800+30"]

1. d4 {[%emt 0:00:07]} d5 {[%emt 0:02:11]} 2. c4 {[%emt 0:00:07]} e6 {[%emt 0:00:04]} 3. Nc3 {[%emt 0:00:17]} Nf6 {[%emt 0:00:06]} 4. Nf3 {[%emt 0:00:19]} c6 {[%emt 0:00:08]} 5. Bg5 {[%emt 0:00:11]} Be7 {[%emt 0:01:32]} 6. e3 {[%emt 0:00:42]} Nbd7 {[%emt 0:00:15]} 7. Bd3 {[%emt 0:00:21]} h6 {[%emt 0:00:11]} 8. Bh4 {[%emt 0:00:09]} dxc4 {[%emt 0:04:31]} 9. Bxc4 {[%emt 0:01:26]} O-O {[%emt 0:03:41]} 10. O-O {[%emt 0:00:57]} b6 {[%emt 0:03:12]} 11. Qe2 {[%emt 0:08:08]} Bb7 {[%emt 0:01:15]} 12. Rfd1 {[%emt 0:03:08]} Nh5 {[%emt 0:03:46]} 13. Bxe7 {[%emt 0:08:57]} Qxe7 {[%emt 0:00:03]} 14. Ba6 {[%emt 0:00:15]} Bxa6 {[%emt 0:05:12]} 15. Qxa6 {[%emt 0:00:02]} Nhf6 {[%emt 0:00:13]} 16. e4 {[%emt 0:01:48]} Rfc8 {[%emt 0:14:56]} 17. Rac1 {[%emt 0:18:42]} Qd8 {[%emt 0:13:24]} 18. a3 {[%emt 0:07:34]} Rc7 {[%emt 0:13:11]} 19. b4 {[%emt 0:01:29]} Qc8 {[%emt 0:03:22]} 20. Qc4 {[%emt 0:01:41]} Ne8 {[%emt 0:01:34]} 21. Qf1 {[%emt 0:08:42]} Qb7 {[%emt 0:00:08]} 22. Qd3 {[%emt 0:03:52]} Rd8 {[%emt 0:01:00]} 23. a4 {[%emt 0:01:00]} Nf8 {[%emt 0:01:32]} 24. Ne5 {[%emt 0:04:06]} Nd7 {[%emt 0:06:08]} 25. Nc4 {[%emt 0:00:27]} Rcc8 {[%emt 0:00:20]} 26. h3 {[%emt 0:08:18]} Qb8 {[%emt 0:00:27]} 27. Qe2 {[%emt 0:01:37]} Nf8 {[%emt 0:10:01]} 28. g3 {[%emt 0:02:56]} Qb7 {[%emt 0:02:19]} 29. h4 {[%emt 0:00:47]} Qe7 {[%emt 0:00:09]} 30. Rb1 {[%emt 0:01:12]} Rc7 {[%emt 0:02:24]} 31. Rd2 {[%emt 0:05:06]} Nd6 {[%emt 0:03:38]} 32. Ne3 {[%emt 0:00:28]} Ne8 {[%emt 0:01:04]} 33. Qc4 {[%emt 0:02:15]} Qf6 {[%emt 0:01:26]} 34. Kg2 {[%emt 0:01:47]} Qg6 {[%emt 0:00:12]} 35. Qe2 {[%emt 0:00:48]} Nf6 {[%emt 0:00:31]} 36. Nc4 {[%emt 0:00:36]} Ne8 {[%emt 0:00:35]} 37. a5 {[%emt 0:02:18]} Qf6 {[%emt 0:00:23]} 38. Qe3 {[%emt 0:02:14]} Qe7 {[%emt 0:00:35]} 39. axb6 {[%emt 0:02:00]} axb6 {[%emt 0:00:03]} 40. Nxb6 {[%emt 0:00:05]} Rb8 {[%emt 0:00:13]} 41. Nba4 {[%emt 0:07:18]} Rxb4 {[%emt 0:00:07]} 42. Rxb4 {[%emt 0:00:24]} Qxb4 {[%emt 0:00:06]} 43. e5 {[%emt 0:02:11]} Qe7 {[%emt 0:06:43]} 44. Nc5 {[%emt 0:01:51]} Ra7 {[%emt 0:00:40]} 45. Rb2 {[%emt 0:02:04]} Nc7 {[%emt 0:00:22]} 46. Rb8 {[%emt 0:02:32]} Nd5 {[%emt 0:00:06]} 47. Qf3 {[%emt 0:00:33]} Nxc3 {[%emt 0:07:22]} 48. Qxc3 {[%emt 0:01:57]} f5 {[%emt 0:01:43]} 49. Qf3 {[%emt 0:02:00]} Rc7 {[%emt 0:02:36]} 50. h5 {[%emt 0:00:08]} Qf7 {[%emt 0:00:15]} 51. Qb3 {[%emt 0:03:35]} Re7 {[%emt 0:00:09]} 52. Qf3 {[%emt 0:00:53]} Re8 {[%emt 0:00:09]} 53. Rb7 {[%emt 0:01:10]} Re7 {[%emt 0:00:03]} 54. Rxe7 {[%emt 0:00:34]} Qxe7 {[%emt 0:00:05]} 55. Qxc6 {[%emt 0:00:03]} Kh7 {[%emt 0:01:41]} 56. d5 {[%emt 0:02:00]} exd5 {[%emt 0:00:04]} 57. Qd6 {[%emt 0:00:56]} Qf7 {[%emt 0:00:04]} 58. e6 {[%emt 0:00:06]} Qf6 {[%emt 0:00:02]} 59. Qxd5 {[%emt 0:00:10]} Kh8 {[%emt 0:01:13]} 60. Qa8 {[%emt 0:00:34]} 1-0

[Event "45th FIDE Olympiad 2024"]
[Site "Budapest"]
[Date "2024.09.16"]
[Round "6.50"]
[White "Bridet, Robert"]
[Black "Abdelaziz Bokhit, Badjoiri"]
[Result "0-1"]
[WhiteElo "1697"]
[BlackElo "1778"]
[PlyCount "152"]
[EventDate "2024.09.05"]
[EventType "team-tourn"]
[EventCountry "HUN"]
[WhiteTeam "Dominica"]
[BlackTeam "Chad"]
[BlackTeamCountry "CHD"]
[TimeControl "40/5400+30:1800+30"]

1. e4 e5 2. Nf3 Nc6 3. Bc4 Bc5 4. O-O Nf6 5. Nc3 d6 6. h3 h6 7. a3 a6 8. d3 O-O 9. Qe2 Qe7 10. Nd1 Be6 11. Ne3 Bxc4 12. Nxc4 b5 13. Ne3 Bxe3 14. Bxe3 Nh5 15. c3 Nd8 16. Nh2 Qh4 17. Nf3 Qf6 18. g3 Ne6 19. Nh4 Nhf4 20. Qd2 Nxh3+ 21. Kh2 Nhg5 22. Kg2 Qd8 23. Nf5 d5 24. f3 d4 25. Bf2 c5 26. Rh1 f6 27. cxd4 Nxd4 28. Bxd4 cxd4 29. Rac1 Qd7 30. Qb4 a5 31. Qc5 Kh7 32. Qb6 Rfb8 33. Rc7 Qxf5 34. Rxg7+ Kh8 35. exf5 Rxb6 36. Rc7 Kg8 37. Rxh6 Nf7 38. Rh1 Rab8 39. Ra7 a4 40. Rc1 R6b7 41. Ra6 Rb6 42. Ra7 Nd6 43. g4 Rc8 44. Rxc8+ Nxc8 45. Ra8 Rc6 46. Rb8 Rc5 47. Kg3 Kf7 48. Rb7+ Ne7 49. Kh4 Rc2 50. Rxb5 Rd2 51. b4 Rxd3 52. Kg3 Rxa3 53. Rb7 Rb3 54. b5 a3 55. Ra7 e4 56. b6 Rxf3+ 57. Kg2 Rb3 58. b7 Rb2+ 59. Kf1 a2 60. Rxa2 Rxb7 61. Ke2 Rb3 62. Ra4 Nc6 63. Rc4 Rc3 64. Ra4 Rc2+ 65. Kd1 Rg2 66. Rc4 Ne7 67. Rxd4 Rxg4 68. Rd7 Rf4 69. Ke2 Rxf5 70. Ke3 Re5 71. Ra7 f5 72. Kf4 Kf6 73. Ra6+ Re6 74. Ra5 Ng6+ 75. Ke3 f4+ 76. Ke2 Re5 {0-} 0-1

[Event "45th FIDE Olympiad 2024"]
[Site "Budapest"]
[Date "2024.09.16"]
[Round "6.51"]
[White "Vasquez Schroeder, Rodrigo"]
[Black "Indjic, Aleksandar"]
[Result "0-1"]
[ECO "C55"]
[WhiteElo "2457"]
[BlackElo "2611"]
[Annotator "TA"]
[PlyCount "64"]
[EventDate "2024.09.05"]
[EventType "team-tourn"]
[EventCountry "HUN"]
[SourceTitle "playchess.com"]
[Source "ChessBase"]
[SourceQuality "1"]
[WhiteTeam "Chile"]
[BlackTeam "Serbia"]
[WhiteTeamCountry "CHI"]
[BlackTeamCountry "SRB"]
[TimeControl "40/5400+30:1800+30"]

{[%evp 9,64,31,38,45,30,25,36,37,40,37,54,47,71,62,56,68,71,60,70,68,66,69,134,121,122,121,125,133,124,31,18,8,47,-25,-31,-17,-43,-32,64,51,65,73,64,0,0,0,-24,0,-23,-22,0,-105,-98,-86,0,-29979,-29980]} 1. e4 {[%emt 0:02:31]} e5 {[%emt 0:00:20]} 2. Nf3 {[%emt 0:00:07]} Nc6 {[%emt 0:00:23]} 3. Bc4 {[%emt 0:00:07]} Nf6 {[%emt 0:00:32]} 4. d3 {[%emt 0:00:10]} h6 {[%emt 0:00:37]} 5. c3 {[%emt 0:00:42]} d6 {[%emt 0:00:08]} 6. a4 {[%emt 0:00:32]} g5 {[%emt 0:00:42]} 7. a5 {[%emt 0:01:33]} a6 {[%emt 0:01:50]} 8. Qb3 {[%emt 0:00:39] White is slightly better.} Qe7 {[%emt 0:01:24]} 9. Nbd2 {[%emt 0:01:51][%cal Bb1d2,Bd2f1,Bf1e3][%mdl 32]} Rb8 {[%emt 0:06:16]} 10. Nf1 {[%emt 0:01:02]} Be6 {[%emt 0:00:05]} 11. Ne3 {[%emt 0:02:59]} Qd7 {[%emt 0:00:07]} 12. h4 {[%emt 0:02:31]} g4 {[%emt 0:00:21]} 13. Nh2 {[%emt 0:00:50]} h5 {[%emt 0:02:52]} 14. Nd5 {[%emt 0:02:39]} Bg7 {[%emt 0:01:33]} 15. Nf1 {[%emt 0:02:28]} Bxd5 {[%emt 0:12:42]} ({Better is} 15... Ne7 $14) 16. exd5 $16 {[%emt 0:03:38]} Ne7 {[%emt 0:07:49][%cal Bc6e7,Be7d5,Bd5f4][%mdl 32]} 17. Bxa6 {[%emt 0:01:36]} Qc8 {[%emt 0:01:06]} 18. Bc4 {[%emt 0:00:42]} O-O {[%emt 0:00:07][%cal Ob7b5]} 19. Bg5 {[%emt 0:02:09]} ({White should play} 19. Ng3 $16) 19... b5 $1 $14 {[%emt 0:02:41]} 20. axb6 {[%emt 0:11:13]} Rxb6 {[%emt 0:00:54]} 21. Qd1 {[%emt 0:17:06]} (21. Qa2 $14) 21... Nexd5 $11 {[%emt 0:03:45] aiming for ...Qb7.} 22. Ng3 {[%emt 0:07:39]} Nf4 $1 {[%emt 0:07:50]} 23. O-O {[%emt 0:00:40]} Nh7 {[%emt 0:07:13]} (23... d5 $15 24. Bb3 Nh7 25. Bxf4 exf4 26. Nxh5 Bh6) 24. Bxf4 $14 {[%emt 0:05:45]} exf4 {[%emt 0:00:17]} 25. Nxh5 {[%emt 0:01:07]} Qf5 {[%emt 0:03:20] [#]} 26. Ra5 $1 {[%emt 0:01:45]} Be5 $1 $36 {[%emt 0:01:53][%mdl 2048] Black has the initiative.} (26... Qxa5 $2 27. Qxg4 $18) 27. d4 {[%emt 0:01:25][%cal Oh5f4]} Qxh5 {[%emt 0:00:16]} 28. dxe5 {[%emt 0:00:05]} Qxh4 {[%emt 0:00:11]} 29. e6 {[%emt 0:02:22] Threatens to win with e7.} c5 $1 {[%emt 0:02:58] Hoping for ...g3.} 30. e7 {[%emt 0:03:44]} (30. exf7+ Kg7 31. Be6 g3 32. fxg3 Qxg3 $14 (32... fxg3 33. Bh3 $11)) (30. Qd2 $11 f3 31. exf7+ Kg7 32. Bd5) 30... Re8 $17 {[%emt 0:02:49][%cal Oh7g5] And now ...Ng5! would win.} 31. Qd2 {[%emt 0:01:51]} Rxe7 {[%emt 0:06:18]} ({Black should try} 31... f3 $17 {Strongly threatening ...Ng5.} 32. Ra4 Kg7 (32... Qxe7 33. Bd3 $14) (32... Rxe7 33. Qf4 $17)) 32. Re1 $2 {[%emt 0:05:57][%mdl 8192] [#]} (32. Qxf4 $11 Qg5 33. Qxg5+ Nxg5 34. b4) 32... Rxb2 $3 {[%emt 0:01:31][%mdl 512] Weighted Error Value: White=0.41/Black=0.14 (very precise) .  Loses game:     	White=1     	---        Mistake:       	White=4     	Black=3      Inaccurate:     	---       	Black=1      OK:         	White=13    	Black=8      Best:        	White=5     	Black=2      Strong:       	---       	Black=4      Brilliant:      	---       	Black=1} 0-1

[Event "45th FIDE Olympiad 2024"]
[Site "Budapest"]
[Date "2024.09.16"]
[Round "6.51"]
[White "Adam, Jamal"]
[Black "Thomas, Larry"]
[Result "1-0"]
[WhiteElo "2013"]
[BlackElo "1686"]
[PlyCount "117"]
[EventDate "2024.09.05"]
[EventType "team-tourn"]
[EventCountry "HUN"]
[WhiteTeam "Chad"]
[BlackTeam "Dominica"]
[WhiteTeamCountry "CHD"]
[TimeControl "40/5400+30:1800+30"]

1. e4 e5 2. Nf3 Nf6 3. Nc3 Nc6 4. Bc4 Nxe4 5. O-O Nf6 6. Re1 d6 7. d4 Bg4 8. dxe5 dxe5 9. Qxd8+ Rxd8 10. Nxe5 Nxe5 11. Rxe5+ Be7 12. Bg5 Kf8 13. h3 Bc8 14. Rae1 Bd6 15. R5e2 h6 16. Bh4 g5 17. Bg3 Bxg3 18. fxg3 c6 19. Rf2 Nd5 20. Nxd5 cxd5 21. Rd1 Be6 22. Rfd2 Rc8 23. Bb3 Ke7 24. c3 Rhd8 25. Bxd5 Rxd5 26. Rxd5 Bxd5 27. Rxd5 Ke6 28. Rd4 f5 29. Kf2 Rc7 30. Ke3 b5 31. Rd8 Rc6 32. Kd3 a6 33. b3 Ke7 34. Rd5 Ke6 35. c4 h5 36. Kd4 bxc4 37. bxc4 Rb6 38. Kc3 Rb1 39. Rd2 a5 40. a3 a4 41. Rb2 Rc1+ 42. Kb4 g4 43. hxg4 hxg4 44. Rd2 Ke5 45. c5 Ke4 46. Kb5 Rc3 47. c6 Ke3 48. Rd5 Rb3+ 49. Kxa4 Rb6 50. Rc5 Rb8 51. c7 Rc8 52. Kb5 Kf2 53. Kb6 Kxg3 54. Rxf5 Kxg2 55. Kb7 Rg8 56. c8=Q Rxc8 57. Kxc8 g3 58. a4 Kh3 59. Rg5 1-0

[Event "45th FIDE Olympiad 2024"]
[Site "Budapest"]
[Date "2024.09.16"]
[Round "6.52"]
[White "Markus, Robert"]
[Black "Marrujo Pardo, Mauricio Emmanuel"]
[Result "1-0"]
[ECO "D26"]
[WhiteElo "2586"]
[BlackElo "2332"]
[Annotator "TA"]
[PlyCount "71"]
[EventDate "2024.09.05"]
[EventType "team-tourn"]
[EventCountry "HUN"]
[SourceTitle "playchess.com"]
[Source "ChessBase"]
[SourceQuality "1"]
[WhiteTeam "Serbia"]
[BlackTeam "Chile"]
[WhiteTeamCountry "SRB"]
[BlackTeamCountry "CHI"]
[TimeControl "40/5400+30:1800+30"]

{[%evp 16,71,15,21,24,8,26,23,57,60,57,47,48,46,67,58,67,57,165,152,314,271,269,284,287,285,285,285,285,281,271,179,183,194,180,181,212,233,233,224,220,221,240,199,202,208,748,720,717,702,976,960,966,930,5281,2149,29993,29994]} 1. d4 {[%emt 0:00:03]} d5 {[%emt 0:03:15]} 2. c4 {[%emt 0:00:05]} dxc4 {[%emt 0:00:04]} 3. e3 {[%emt 0:00:04]} e6 {[%emt 0:00:05]} 4. Bxc4 {[%emt 0:00:05]} Nf6 {[%emt 0:00:13]} 5. Qe2 {[%emt 0:00:38]} c5 {[%emt 0:01:27]} 6. Nf3 {[%emt 0:00:08]} a6 {[%emt 0:02:05]} 7. dxc5 {[%emt 0:00:06]} Bxc5 {[%emt 0:00:09]} 8. O-O {[%emt 0:00:11]} b5 {[%emt 0:03:53]} 9. Bd3 {[%emt 0:00:28]} O-O {[%emt 0:00:24]} 10. Nbd2 {[%emt 0:05:02]} Nc6 {[%emt 0:13:13]} 11. Ne4 {[%emt 0:10:42]} Qd5 {[%emt 0:20:19] White has an edge.} 12. Nxf6+ {[%emt 0:14:05]} gxf6 {[%emt 0:00:09]} 13. Rd1 {[%emt 0:02:38]} Qh5 {[%emt 0:01:54]} 14. a4 {[%emt 0:07:29]} b4 {[%emt 0:13:35]} 15. b3 $36 {[%emt 0:02:22][%mdl 2048] Strongly threatening Bb2. White has the initiative.} Bb7 {[%emt 0:01:34]} 16. Bb2 {[%emt 0:00:08][%cal Oa1c1] Threatens to win with Rac1!} Kg7 {[%emt 0:00:57]} (16... Be7 $14) 17. Be4 {[%emt 0:06:02][%cal Bd3e4,Be4b7,Bb7c6][%mdl 32] Rd7 would now be deadly.} Qg4 $2 {[%emt 0:09:20] This costs Black the game.} (17... Rfd8 $16 {keeps fighting.} 18. h3 Be7) 18. Qc2 {[%emt 0:03:16]} Nd4 {[%emt 0:25:50]} 19. Rxd4 {[%emt 0:01:26]} ({And not} 19. Bxd4 Bxe4 20. Qe2 (20. Qxc5 $2 {too greedy.} Bxf3 21. g3 Bxd1 $19) 20... Be7 $17) (19. Qxc5 $2 Nxf3+ 20. Bxf3 Bxf3 21. Bxf6+ Kxf6 $19) (19. exd4 Bxe4 20. Qe2 Ba7 $15) 19... Bxd4 {[%emt 0:00:02]} 20. Bxb7 {[%emt 0:00:07]} Bxb2 {[%emt 0:00:04]} 21. Qxb2 {[%emt 0:01:16]} Ra7 {[%emt 0:00:01]} 22. Bc6 {[%emt 0:02:05]} Rc7 {[%emt 0:00:02]} 23. Rc1 {[%emt 0:01:13]} Rfc8 {[%emt 0:01:29]} 24. Rc4 {[%emt 0:00:17]} Qf5 {[%emt 0:01:53]} 25. e4 {[%emt 0:16:04]} Qf4 {[%emt 0:00:19]} 26. Qc2 {[%emt 0:02:22]} Qd6 {[%emt 0:00:34]} 27. Nd4 {[%emt 0:01:02]} Rd8 {[%emt 0:00:18][%cal Oc7c6] [#]} 28. g3 $1 {[%emt 0:01:17]} Qe5 {[%emt 0:00:02]} 29. Nf3 {[%emt 0:00:47]} Qa1+ {[%emt 0:01:07]} 30. Kg2 {[%emt 0:00:15] And now e5 would win.} Rdc8 $2 {[%emt 0:00:36]} (30... Qd1) 31. e5 $18 {[%emt 0:04:19]} f5 {[%emt 0:00:25] [#]} 32. Qd2 $1 {[%emt 0:00:05][%cal Oc4h4] Rh4! would kill now.} h6 {[%emt 0:00:29] [#]} (32... Rxc6 33. Rxc6) 33. Rh4 $1 {[%emt 0:01:29]} Rh8 {[%emt 0:00:02]} 34. Qd6 {[%emt 0:00:08]} Rcc8 {[%emt 0:00:46] [#]} 35. Qe7 $1 {[%emt 0:02:31][%cal Of3g5] Intending Ng5! and mate.} Rxc6 {[%emt 0:00:31] [#]} (35... Qc3 36. Bd7) 36. Ng5 $1 {[%emt 0:01:06][%mdl 512] Weighted Error Value: White=0.14 (very precise) /Black=0.39.  Loses game:     	---       	Black=1      Mistake:       	---       	Black=2      Inaccurate:     	White=1     	Black=1      OK:         	White=11    	Black=7      Best:        	White=2     	Black=3} 1-0

[Event "45th FIDE Olympiad 2024"]
[Site "Budapest"]
[Date "2024.09.16"]
[Round "6.52"]
[White "Francis, Nigel"]
[Black "Hassaballa, Ahmed Hassaballa"]
[Result "1-0"]
[WhiteElo "1775"]
[BlackElo "1902"]
[PlyCount "39"]
[EventDate "2024.09.05"]
[EventType "team-tourn"]
[EventCountry "HUN"]
[WhiteTeam "Dominica"]
[BlackTeam "Chad"]
[BlackTeamCountry "CHD"]
[TimeControl "40/5400+30:1800+30"]

1. e4 c5 2. Nf3 e6 3. d4 cxd4 4. Nxd4 Nc6 5. Nc3 Bb4 6. Ndb5 a6 7. Nd6+ Bxd6 8. Qxd6 Qe7 9. Qg3 g6 10. Bf4 b5 11. e5 Bb7 12. O-O-O h6 13. Ne4 Kf8 14. Nd6 Bc8 15. h4 Qd8 16. Bd3 Nge7 17. Qf3 Nf5 18. Bxf5 exf5 19. g4 fxg4 20. Bxh6+ 1-0